fUSD/lending_fUSD_20260321
["ID","MTS","AMOUNT","RATE_DAILY","PERIOD"]
[408673618,1774103441769,-500.0,0.00015452,2]
[408673619,1774103441779,-500.0,0.00015452,2]
[408673620,1774103441789,-757.0,0.00015452,2]
[408673621,1774103441798,-500.0,0.00015452,2]
[408673622,1774103441808,-500.0,0.00015452,2]
[408673623,1774103441817,-500.0,0.00015452,2]
[408673624,1774103441827,-757.0,0.00015452,2]
[408673625,1774103441836,-500.0,0.00015452,2]
[408673626,1774103441845,-215.33010556,0.00015452,2]
[408673627,1774103441855,-500.0,0.00015452,2]
[408673628,1774103441864,-757.0,0.00015452,2]
[408673629,1774103441874,-500.0,0.00015452,2]
[408673630,1774103441883,-500.0,0.00015452,2]
[408673631,1774103441893,-500.0,0.00015452,2]
[408673632,1774103441902,-500.0,0.00015452,2]
[408673633,1774103441911,-500.0,0.00015452,2]
[408673634,1774103441922,-757.0,0.00015452,2]
[408673635,1774103441931,-500.0,0.00015452,2]
[408673636,1774103441940,-500.0,0.00015452,2]
[408673637,1774103441950,-256.16426944,0.00015452,2]
[408673638,1774103441960,-500.0,0.00015452,2]
[408673639,1774103441969,-757.0,0.00015452,2]
[408673640,1774103441978,-500.0,0.00015452,2]
[408673641,1774103441988,-500.0,0.00015452,2]
[408673642,1774103441997,-500.0,0.00015452,2]
[408673643,1774103442007,-757.0,0.00015452,2]
[408673644,1774103442016,-500.0,0.00015452,2]
[408673645,1774103442026,-500.0,0.00015452,2]
[408673646,1774103442041,-500.0,0.00015452,2]
[408673647,1774103442050,-757.0,0.00015452,2]
[408673648,1774103442061,-500.0,0.00015452,2]
[408673649,1774103442071,-500.0,0.00015452,2]
[408673650,1774103442081,-500.0,0.00015452,2]
[408673651,1774103442091,-757.0,0.00015452,2]
[408673652,1774103442102,-246.79709611,0.00015452,2]
[408673653,1774103442111,-500.0,0.00015452,2]
[408673654,1774103442121,-500.0,0.00015452,2]
[408673655,1774103442132,-757.0,0.00015452,2]
[408673656,1774103442141,-500.0,0.00015452,2]
[408673657,1774103442151,-500.0,0.00015452,2]
[408673658,1774103442161,-500.0,0.00015452,2]
[408673659,1774103442171,-757.0,0.00015452,2]
[408673660,1774103442181,-500.0,0.00015452,2]
[408673661,1774103442191,-500.0,0.00015452,2]
[408673662,1774103442202,-495.0,0.00015452,2]
[408673663,1774103442212,-500.0,0.00015452,2]
[408673664,1774103442222,-757.0,0.00015452,2]
[408673665,1774103442232,-372.33776627,0.00015452,2]
[408673666,1774103442242,-261.70880193,0.00015452,2]
[408673667,1774103442252,-500.0,0.00015452,2]
[408673668,1774103442262,-495.0,0.00015452,2]
[408673669,1774103442272,-757.0,0.00015452,2]
[408673670,1774103442282,-500.0,0.00015452,2]
[408673671,1774103442292,-495.0,0.00015452,2]
[408673672,1774103442301,-757.0,0.00015452,2]
[408673673,1774103442311,-500.0,0.00015452,2]
[408673674,1774103442321,-495.0,0.00015452,2]
[408673675,1774103442330,-757.0,0.00015452,2]
[408673676,1774103442340,-500.0,0.00015452,2]
[408673677,1774103442350,-495.0,0.00015452,2]
[408673678,1774103442361,-495.0,0.00015452,2]
[408673679,1774103442371,-500.0,0.00015452,2]
[408673680,1774103442381,-757.0,0.00015452,2]
[408673681,1774103442391,-495.0,0.00015452,2]
[408673682,1774103442401,-500.0,0.00015452,2]
[408673683,1774103442411,-757.0,0.00015452,2]
[408673684,1774103442420,-495.0,0.00015452,2]
[408673685,1774103442430,-495.0,0.00015452,2]
[408673686,1774103442441,-500.0,0.00015452,2]
[408673687,1774103442451,-495.0,0.00015452,2]
[408673688,1774103442462,-757.0,0.00015452,2]
[408673689,1774103442472,-495.0,0.00015452,2]
[408673690,1774103442483,-495.0,0.00015452,2]
[408673691,1774103442493,-495.0,0.00015452,2]
[408673692,1774103442503,-495.0,0.00015452,2]
[408673693,1774103442513,-500.0,0.00015452,2]
[408673694,1774103442522,-757.0,0.00015452,2]
[408673695,1774103442532,-495.0,0.00015452,2]
[408673696,1774103442543,-495.0,0.00015452,2]
[408673697,1774103442554,-495.0,0.00015452,2]
[408673698,1774103442564,-495.0,0.00015452,2]
[408673699,1774103442575,-266.24818512,0.00015452,2]
[408673700,1774103442585,-757.0,0.00015452,2]
[408673701,1774103442594,-495.0,0.00015452,2]
[408673702,1774103442604,-757.0,0.00015452,2]
[408673703,1774103442614,-495.0,0.00015452,2]
[408673704,1774103442624,-495.0,0.00015452,2]
[408673705,1774103442634,-757.0,0.00015452,2]
[408673706,1774103442644,-495.0,0.00015452,2]
[408673707,1774103442654,-757.0,0.00015452,2]
[408673708,1774103442665,-495.0,0.00015452,2]
[408673709,1774103442675,-766.34950983,0.00015452,2]
[408673710,1774103442686,-499.47795526,0.00015452,2]
[408673711,1774103442697,-887.19,0.00015468,2]
[408673712,1774103442707,-500.84837608,0.00015473,2]
[408673713,1774103442717,-500.56236053,0.00015473,2]
[408673714,1774103442727,-568.73940458,0.00015473,2]
[408673715,1774103442737,-7219.83623918,0.00015474,2]
[408673716,1774103442747,-4527.4822,0.00015479,2]
[408673717,1774103442757,-7219.83623918,0.00015535,2]
[408673718,1774103442767,-168.0,0.00015592,2]
[408673719,1774103442777,-1558.87846199,0.00015595,2]
[408673720,1774103442787,-7219.83623918,0.00015596,2]
[408673721,1774103442797,-2909.3711067,0.000156,2]
[408673722,1774103442807,-1046.8329771,0.000156,2]
[408673723,1774103442816,-500.0,0.00015626,2]
[408673724,1774103442826,-500.0,0.00015626,2]
[408673725,1774103442836,-150.75759761,0.00015626,2]
[408673726,1774103442846,-567.51480904,0.00015626,2]
[408673727,1774103442856,-500.0,0.00015626,2]
[408673728,1774103442866,-500.0,0.00015626,2]
[408673729,1774103442876,-190.77647721,0.00015626,2]
[408673730,1774103442886,-537.74,0.00015629,2]
[408673731,1774103442896,-7219.83623918,0.00015656,2]
[408673732,1774103442905,-1274.08519804,0.0001568,2]
[408673733,1774103442915,-183.892102,0.0001568,7]
[408673734,1774103442925,-7219.83623918,0.00015717,2]
[408673735,1774103442935,-160.0,0.00015735,2]
[408673736,1774103442944,-160.0,0.00015736,2]
[408673737,1774103442954,-979.16666667,0.00015736,2]
[408673738,1774103442964,-887.19,0.00015742,2]
[408673739,1774103442974,-7219.83623918,0.00015778,2]
[408673740,1774103442984,-168.0,0.00015793,2]
[408673741,1774103442994,-216.68326983,0.00015838,2]
[408673742,1774103443003,-617.42689228,0.00015838,2]
[408673743,1774103443013,-500.0,0.00015838,2]
[408673744,1774103443023,-500.0,0.00015838,2]
[408673745,1774103443034,-500.0,0.00015838,2]
[408673746,1774103443044,-500.0,0.00015838,2]
[408673747,1774103443054,-509.07207731,0.00015838,2]
[408673748,1774103443063,-7219.83623918,0.00015839,2]
[408673749,1774103443073,-168.0,0.00015859,2]
[408673750,1774103443083,-5000.0,0.00015873,2]
[408673751,1774103443092,-2000.0,0.0001589,2]
[408673752,1774103443104,-3517.815,0.000159,2]
[408673753,1774103443114,-1059.2752,0.000159,2]
[408673754,1774103443123,-1178.52133832,0.000159,2]
[408673755,1774103443133,-25000.0,0.000159,3]
[408673756,1774103443143,-1031.63537006,0.000159,2]
[408673757,1774103443153,-1558.87846199,0.000159,2]
[408673758,1774103443163,-348.1590763,0.000159,2]
[408673759,1774103443172,-7219.83623918,0.000159,2]
[408673760,1774103443182,-210.47643994,0.000159,2]
[408673761,1774103443191,-366.4469759,0.000159,2]
[408673762,1774103443202,-537.74,0.00015903,2]
[408673763,1774103443211,-7046.7474327,0.00015908,2]
[408673765,1774103443221,-3531.3240011,0.00015908,2]
[408673767,1774103443231,-133750.0082327,0.00015908,2]
[408673769,1774103443242,-433.0,0.00015908,2]
[408673770,1774103443251,-176.2880377,0.00015956,2]
[408673771,1774103443261,-35839.9176465,0.00015956,2]
[408673772,1774103443270,-200.0,0.00015969,2]
[408673773,1774103443280,-4085.0,0.00015973,2]
[408673774,1774103443290,-2860.0,0.00015973,2]
[408673775,1774103443300,-569.27962609,0.00015973,2]
[408673776,1774103443309,-160.048,0.00015973,2]
[408673777,1774103443319,-500.0,0.00015973,2]
[408673778,1774103443329,-500.0,0.00015973,2]
[408673779,1774103443339,-432.48590143,0.0001599,2]
[408673780,1774103443349,-432.48590143,0.0001599,2]
[408673781,1774103443359,-432.48590143,0.0001599,2]
[408673782,1774103443369,-151.0,0.00015997,2]
[408673783,1774103443379,-151.0,0.00015997,2]
[408673784,1774103443389,-1789.0,0.00016,5]
[408673785,1774103443399,-706097.68111372,0.00016,2]
[408673786,1774103443516,-963.42602351,0.00016,2]
[408673787,1774103443534,-828.490705,0.00016,2]
[408673788,1774103443552,-1211.0,0.00016,2]
[408673789,1774103443696,-68948.31805672,0.00016,2]
[408673792,1774103443729,-412.0,0.00015759,2]
[408673794,1774103443740,-209.0,0.00015759,2]
[408673795,1774103443750,-3751.21625,0.000159,2]
[408673796,1774103443762,-4707.50938626,0.000159,2]
[408673797,1774103443772,-8682.80698874,0.00016,2]
[408673798,1774103443844,-658.36731481,0.000159,2]
[408673799,1774103443859,-1988.98261015,0.000159,2]
[408673800,1774103443869,-922763.63937037,0.00016,2]
[408673801,1774103443885,-2058.82517638,0.00016,2]
[408673809,1774103446190,-761.9413045,0.00015159,2]
[408673811,1774103446253,-6238.29465856,0.00015159,2]
[408673812,1774103446263,-121373.29094268,0.00016,2]
[408673813,1774103446346,-3098.9,0.00016,2]
[408673814,1774103446357,-4308.59207086,0.00016,2]
[408673815,1774103446370,-242272.21294706,0.00016,2]
[408673816,1774103446383,-395.29666381,0.00016,2]
[408673817,1774103446395,-6963.72198999,0.00016,2]
[408673818,1774103446406,-1230.62946903,0.00016,2]
[408673819,1774103446418,-699.27,0.00016,2]
[408673820,1774103446611,-377.00008373,0.00016,2]
[408673824,1774103535786,-507.0,0.00013111,2]
[408673825,1774103535810,-234.87,0.00013111,2]
[408673826,1774103535833,-383.46001581,0.00013485,2]
[408673827,1774103535859,-500.0,0.00013585,2]
[408673828,1774103535887,-500.0,0.00013585,2]
[408673829,1774103535916,-500.0,0.00013585,2]
[408673830,1774103535942,-500.0,0.00013585,2]
[408673831,1774103535967,-500.0,0.00013585,2]
[408673832,1774103535992,-500.0,0.00013585,2]
[408673833,1774103536020,-500.0,0.00013585,2]
[408673834,1774103536049,-374.66998419,0.00013585,2]
[408673835,1774103557240,-5000.0,0.00013586,2]
[408673836,1774103558699,-5000.0,0.00013586,2]
[408673837,1774103560137,-5000.0,0.00013586,2]
[408673838,1774103564081,-5000.0,0.00013586,2]
[408673839,1774103565820,-5000.0,0.00013586,2]
[408673840,1774103739853,-150.0,0.00013585,2]
[408673841,1774103739878,-300.0,0.00013585,2]
[408673842,1774103739903,-456.59200708,0.00013585,2]
[408673843,1774103758561,-743.40799292,0.00013585,2]
[408673844,1774103758590,-300.0,0.00013585,2]
[408673845,1774103758617,-1200.0,0.00013585,2]
[408673846,1774103758649,-213.19401416,0.00013585,2]
[408673847,1774103758711,-86.80598584,0.00013585,2]
[408673848,1774103761264,300.0,0.00013584,2]
[408673849,1774103762238,300.0,0.00013584,2]
[408673850,1774103762458,150.0,0.00013585,2]
[408673851,1774103764911,-8960.22378454,0.00013586,2]
[408673852,1774103764998,-10000.01,0.00013586,2]
[408673853,1774103765127,-10000.01,0.00013586,2]
[408673854,1774103765249,-10000.01,0.00013586,2]
[408673855,1774103765479,-10000.01,0.00013586,2]
[408673856,1774103765493,-10000.01,0.00013586,2]
[408673857,1774103765591,-10000.01,0.00013586,2]
[408673858,1774103765717,-10000.01,0.00013586,2]
[408673859,1774103765824,-10000.01,0.00013586,2]
[408673860,1774103765922,-10000.01,0.00013586,2]
[408673861,1774103766018,-10000.01,0.00013586,2]
[408673862,1774103766145,-10000.01,0.00013586,2]
[408673863,1774103766244,-10000.01,0.00013586,2]
[408673864,1774103766370,-10000.01,0.00013586,2]
[408673865,1774103766478,-10000.01,0.00013586,2]
[408673866,1774103770933,-10000.01,0.00013586,2]
[408673867,1774103771033,-10000.01,0.00013586,2]
[408673868,1774103771175,-10000.01,0.00013586,2]
[408673869,1774103771276,-10000.01,0.00013586,2]
[408673870,1774103771395,-10000.01,0.00013586,2]
[408673871,1774103771534,-10000.01,0.00013586,2]
[408673872,1774103771655,-10000.01,0.00013586,2]
[408673873,1774103771786,-10000.01,0.00013586,2]
[408673874,1774104228828,-389.0,0.00013505,2]
[408673875,1774104228863,-1097.22071569,0.00013506,2]
[408673876,1774104228926,-1277.56856862,0.00013506,2]
[408673877,1774104228993,-750.0,0.00013506,2]
[408673878,1774104229020,-628.1322,0.00013506,2]
[408673879,1774104229047,-250.0,0.00013506,2]
[408673880,1774104229104,-1743.7456,0.00013506,2]
[408673881,1774104229132,-5000.01,0.00013506,2]
[408673882,1774104231676,-5000.01,0.00013506,2]
[408673883,1774104231780,-5000.01,0.00013506,2]
[408673884,1774104231881,-1414.6522,0.00013506,2]
[408673885,1774104231910,-262.0,0.00013576,2]
[408673886,1774104231938,-180.29240252,0.00013576,2]
[408673887,1774104231966,-300.0,0.00013584,2]
[408673888,1774104232041,-686.12079496,0.00013585,2]
[408673889,1774104242801,-313.87920504,0.00013585,2]
[408673890,1774104242829,-1200.0,0.00013585,2]
[408673891,1774104242859,-187.0,0.00013585,2]
[408673892,1774104242917,-6598.25158992,0.00013586,2]
[408673893,1774104243373,-10000.01,0.00013586,2]
[408673894,1774104243494,-10000.01,0.00013586,2]
[408673895,1774104243603,-10000.01,0.00013586,2]
[408673896,1774104243728,-2630.90552554,0.00013586,2]
[408673897,1774104243756,-200.0,0.000136,2]
[408673898,1774104243785,-150.0,0.00013605,2]
[408673899,1774104243845,-4038.19894892,0.00013606,2]
[408673900,1774104243877,-10000.01,0.00013606,2]
[408673901,1774104243971,-10000.01,0.00013606,2]
[408673902,1774104244089,-10000.01,0.00013606,2]
[408673903,1774104244200,-10000.01,0.00013606,2]
[408673904,1774104244465,-2184.54163422,0.00013606,2]
[408673905,1774104244490,-5630.92673156,0.00013606,2]
[408673906,1774104244528,-10000.01,0.00013606,2]
[408673907,1774104244542,-10000.01,0.00013606,2]
[408673908,1774104244601,-10000.01,0.00013606,2]
[408673909,1774104244708,-2362.7426478,0.00013606,2]
[408673910,1774104244730,-5274.5247044,0.00013606,2]
[408673911,1774104244818,-10000.01,0.00013606,2]
[408673912,1774104248705,-10000.01,0.00013606,2]
[408673913,1774104248832,-1323.6316112,0.00013606,2]
[408673914,1774104248856,-7352.7467776,0.00013606,2]
[408673915,1774104251819,-175.8142694,0.00013606,2]
[408673916,1774104251852,-500.0,0.00013673,2]
[408673917,1774104251881,-500.0,0.00013673,2]
[408673918,1774104251910,-333.74740353,0.00013673,2]
[408673919,1774104251939,-500.0,0.00013673,2]
[408673920,1774104251968,-503.22543564,0.00013673,2]
[408673921,1774104251999,-1849.64649858,0.00013772,2]
[408673922,1774104252246,-1275.1427857,0.00013772,2]
[408673923,1774104252277,-3124.78928428,0.00014038,2]
[408673924,1774104252307,-197.51894915,0.00014221,2]
[408673925,1774104252388,-805.10796174,0.00014221,2]
[408673926,1774104252416,-1000.0,0.00014221,2]
[408673927,1774104252449,-3124.78928428,0.00014304,2]
[408673928,1774104252635,-500.0,0.00014308,2]
[408673929,1774104252664,-500.0,0.00014308,2]
[408673930,1774104252694,-500.0,0.00014308,2]
[408673931,1774104252722,-500.0,0.00014308,2]
[408673932,1774104252751,-500.0,0.00014308,2]
[408673933,1774104252780,-500.0,0.00014308,2]
[408673934,1774104252809,-500.0,0.00014308,2]
[408673935,1774104252838,-500.0,0.00014308,2]
[408673936,1774104252871,-151.0,0.00014308,2]
[408673937,1774104252900,-500.0,0.00014308,2]
[408673938,1774104252930,-151.0,0.00014308,2]
[408673939,1774104253158,-429.25074744,0.00014308,2]
[408673940,1774104253171,-70.74925256,0.00014308,2]
[408673941,1774104253181,-200.0,0.00014308,2]
[408673942,1774104253195,-151.0,0.00014308,2]
[408673943,1774104253205,-78.25074744,0.00014308,2]
[408673944,1774104253219,-421.74925256,0.00014308,2]
[408673945,1774104253230,-78.25074744,0.00014308,2]
[408673946,1774104253244,-72.74925256,0.00014308,2]
[408673947,1774104253254,-78.25074744,0.00014308,2]
[408673948,1774104253276,-72.74925256,0.00014308,2]
[408673949,1774104253291,-217.38684317,0.00014308,2]
[408673950,1774104253301,-151.0,0.00014308,2]
[408673951,1774104253311,-58.86390427,0.00014308,2]
[408673952,1774104253327,-92.13609573,0.00014308,2]
[408673953,1774104253337,-58.86390427,0.00014308,2]
[408673954,1774104253351,-92.13609573,0.00014308,2]
[408673955,1774104253361,-151.0,0.00014308,2]
[408673956,1774104253372,-151.0,0.00014308,2]
[408673957,1774104253382,-1.87390427,0.00014308,2]
[408673958,1774104253484,-149.12609573,0.00014308,2]
[408673959,1774104253515,-151.0,0.00014308,2]
[408673960,1774104253545,-151.0,0.00014308,2]
[408673961,1774104253575,-151.0,0.00014308,2]
[408673962,1774104253605,-151.0,0.00014308,2]
[408673963,1774104253634,-151.0,0.00014308,2]
[408673964,1774104253664,-151.0,0.00014308,2]
[408673965,1774104253693,-151.0,0.00014308,2]
[408673966,1774104253722,-151.0,0.00014308,2]
[408673967,1774104253755,-151.0,0.00014308,2]
[408673968,1774104253785,-151.0,0.00014308,2]
[408673969,1774104253813,-151.0,0.00014308,2]
[408673970,1774104253843,-151.0,0.00014308,2]
[408673971,1774104253873,-151.0,0.00014308,2]
[408673972,1774104253903,-151.0,0.00014308,2]
[408673973,1774104253937,-151.0,0.00014308,2]
[408673974,1774104253969,-151.0,0.00014308,2]
[408673975,1774104253998,-151.0,0.00014308,2]
[408673976,1774104254026,-151.0,0.00014308,2]
[408673977,1774104254054,-151.0,0.00014308,2]
[408673978,1774104254082,-151.0,0.00014308,2]
[408673979,1774104254110,-151.0,0.00014308,2]
[408673980,1774104254138,-500.0,0.00014308,2]
[408673981,1774104254708,-2359.75780854,0.00014316,2]
[408673982,1774104254723,-10000.01,0.00014316,2]
[408673983,1774104254740,-10000.01,0.00014316,2]
[408673984,1774104254754,-10000.01,0.00014316,2]
[408673985,1774104255959,-10000.01,0.00014316,2]
[408673986,1774104257341,-10000.01,0.00014316,2]
[408673987,1774104257485,-10000.01,0.00014316,2]
[408673988,1774104257584,-10000.01,0.00014316,2]
[408673989,1774104257691,-2209.1502512,0.00014316,2]
[408673990,1774104257718,-167.44290588,0.00014373,2]
[408673991,1774104257745,-500.0,0.00014373,2]
[408673992,1774104257772,-500.0,0.00014373,2]
[408673993,1774104257801,-502.25774111,0.00014373,2]
[408673994,1774104257830,-500.0,0.00014373,2]
[408673995,1774104257857,-166.42,0.00014496,2]
[408673996,1774104257881,-150.0,0.00014568,2]
[408673997,1774104257998,-609.46820362,0.0001457,2]
[408673998,1774104260028,-2515.32108066,0.0001457,2]
[408673999,1774104260057,-500.0,0.00014582,2]
[408674000,1774104260088,-500.0,0.0001463,2]
[408674001,1774104260116,-255.0,0.00014721,2]
[408674002,1774104260143,-606.94783868,0.00014725,2]
[408674003,1774104260220,-1245.47216132,0.00014725,2]
[408674008,1774104404319,-193.76250543,0.00013485,2]
[408674009,1774104404341,-236.41810785,0.00013485,2]
[408674010,1774104554100,-150.0,0.00013484,2]
[408674011,1774104554122,-300.0,0.00013484,2]
[408674012,1774104554143,-500.0,0.00013485,2]
[408674013,1774104554163,-263.58189215,0.00013485,2]
[408674014,1774104554183,-589.63411685,0.00013485,2]
[408674015,1774104554207,-500.0,0.00013485,2]
[408674016,1774104554230,-500.0,0.00013485,2]
[408674017,1774104554254,-500.0,0.00013485,2]
[408674018,1774104554285,-500.0,0.00013485,2]
[408674019,1774104554310,-500.0,0.00013485,2]
[408674020,1774104554541,-500.0,0.00013485,2]
[408674021,1774104554565,-576.612903,0.00013485,2]
[408674022,1774104554587,-500.0,0.00013485,2]
[408674023,1774104554609,-500.0,0.00013485,2]
[408674024,1774104554631,-500.0,0.00013485,2]
[408674025,1774104554653,-500.0,0.00013485,2]
[408674026,1774104554675,-500.0,0.00013485,2]
[408674027,1774104554697,-500.0,0.00013485,2]
[408674028,1774104554718,-500.0,0.00013485,2]
[408674029,1774104554739,-500.0,0.00013485,2]
[408674030,1774104554767,-500.0,0.00013485,2]
[408674031,1774104554792,-500.0,0.00013485,2]
[408674032,1774104554816,-500.0,0.00013485,2]
[408674033,1774104554840,-500.0,0.00013485,2]
[408674034,1774104554864,-500.0,0.00013485,2]
[408674035,1774104554888,-500.0,0.00013485,2]
[408674036,1774104554912,-500.0,0.00013485,2]
[408674037,1774104554936,-500.0,0.00013485,2]
[408674038,1774104554958,-500.0,0.00013485,2]
[408674039,1774104554981,-500.0,0.00013485,2]
[408674040,1774104555007,-500.0,0.00013485,2]
[408674041,1774104555031,-500.0,0.00013485,2]
[408674042,1774104555055,-500.0,0.00013485,2]
[408674043,1774104555081,-500.0,0.00013485,2]
[408674044,1774104555105,-500.0,0.00013485,2]
[408674045,1774104555129,-500.0,0.00013485,2]
[408674046,1774104555153,-500.0,0.00013485,2]
[408674047,1774104555175,-500.0,0.00013485,2]
[408674048,1774104555198,-500.0,0.00013485,2]
[408674049,1774104555219,-500.0,0.00013485,2]
[408674050,1774104555243,-500.0,0.00013485,2]
[408674051,1774104555265,-500.0,0.00013485,2]
[408674052,1774104555289,-500.0,0.00013485,2]
[408674053,1774104555311,-500.0,0.00013485,2]
[408674054,1774104555333,-500.0,0.00013485,2]
[408674055,1774104555356,-500.0,0.00013485,2]
[408674056,1774104555376,-500.0,0.00013485,2]
[408674057,1774104555395,-500.0,0.00013485,2]
[408674058,1774104555414,-500.0,0.00013485,2]
[408674059,1774104555432,-500.0,0.00013485,2]
[408674060,1774104555450,-500.0,0.00013485,2]
[408674061,1774104555468,-500.0,0.00013485,2]
[408674062,1774104555487,-500.0,0.00013485,2]
[408674063,1774104555507,-500.0,0.00013485,2]
[408674064,1774104555527,-500.0,0.00013485,2]
[408674065,1774104555549,-500.0,0.00013485,2]
[408674066,1774104555570,-500.0,0.00013485,2]
[408674067,1774104555592,-500.0,0.00013485,2]
[408674068,1774104555613,-500.0,0.00013485,2]
[408674069,1774104555635,-357757.140688,0.00013486,2]
[408674070,1774104555664,-19788.87576151,0.00013486,2]
[408674071,1774104568105,-55051.81458,0.00013486,2]
[408674073,1774104631402,-2045.34771873,0.00013386,2]
[408674074,1774104631414,-28.50480404,0.00013386,2]
[408674075,1774104631424,-243.00875997,0.00013386,2]
[408674076,1774104631435,-16.99124003,0.00013386,2]
[408674077,1774104631445,-1651.98444374,0.00013386,2]
[408674078,1774104631457,-12.32152757,0.00013386,2]
[408674079,1774104631467,-277.56357842,0.00013473,2]
[408674080,1774104631478,-222.43642158,0.00013473,2]
[408674081,1774104631488,-500.0,0.00013473,2]
[408674082,1774104631499,-500.0,0.00013473,2]
[408674083,1774104631509,-324.02834489,0.00013476,2]
[408674084,1774104631521,-108.45755654,0.00013476,2]
[408674085,1774104631532,-1200.0,0.00013485,2]
[408674086,1774104631541,-98.5497008,0.00013486,2]
[408674087,1774104631553,-492.21212702,0.00013486,2]
[408674088,1774104631565,-7779.46985046,0.00013486,2]
[408674089,1774104631576,-309681.62469221,0.00013486,2]
[408674090,1774104631587,-108369.24538632,0.00013486,2]
[408674091,1774104631600,-3444.84111039,0.00013486,2]
[408674092,1774104631616,-758.93459603,0.00013486,2]
[408674115,1774104637480,-500.0,0.00013486,2]
[408674117,1774104638150,-1126.74248696,0.00013486,2]
[408674118,1774104638163,-500.0,0.00013486,2]
[408674119,1774104638178,-2037.7834228,0.00013385,2]
[408674120,1774104638190,-1764.33415305,0.00013385,2]
[408674121,1774104638201,-520.1239703,0.00013385,2]
[408674122,1774104638211,-579.1391345,0.00013385,2]
[408674132,1774104639678,-354.905,0.00013385,2]
[408674135,1774104639690,-450.9,0.00013385,2]
[408674137,1774104639702,-243060.37771935,0.00013385,2]
[408674139,1774104639712,-895745.7633203,0.00013486,2]
[408674140,1774104639723,-1664.30597129,0.00013665,2]
[408674141,1774104639732,-2073.85252277,0.00013745,2]
[408674142,1774104639742,-1664.30597129,0.00013945,2]
[408674143,1774104639751,-500.0,0.00014021,2]
[408674144,1774104639761,-1411.40808095,0.00014084,2]
[408674145,1774104639770,-2073.85252277,0.00014104,2]
[408674146,1774104639779,-191.37,0.00014184,2]
[408674147,1774104639789,-175.67,0.00014184,2]
[408674148,1774104639799,-150.0,0.00014184,2]
[408674149,1774104639808,-1376.33,0.00014184,2]
[408674150,1774104639817,-1664.30597129,0.00014224,2]
[408674151,1774104639828,-1411.4080809,0.00014286,2]
[408674152,1774104639837,-500.0,0.00014373,2]
[408674153,1774104639849,-2073.85252277,0.00014463,2]
[408674154,1774104639859,-1411.4080809,0.00014488,2]
[408674155,1774104639869,-1664.30597129,0.00014503,2]
[408674156,1774104639878,-1411.4080809,0.00014689,2]
[408674157,1774104639889,-3304.22,0.00014725,2]
[408674158,1774104639898,-287.74314858,0.00014725,2]
[408674159,1774104639908,-200.0,0.00014725,2]
[408674160,1774104639918,-298.04,0.0001482,2]
[408674161,1774104639928,-2073.85252277,0.00014823,2]
[408674162,1774104639948,-1680.0,0.00014833,2]
[408674163,1774104639958,-557.0,0.00014834,2]
[408674164,1774104639967,-483.0,0.00014865,2]
[408674165,1774104639977,-422.44762194,0.00014865,2]
[408674166,1774104639987,-1411.4080809,0.00014891,2]
[408674167,1774104639996,-500.0,0.00014931,2]
[408674168,1774104640007,-9211.34798985,0.00014931,2]
[408674169,1774104640016,-151.0,0.00014931,2]
[408674170,1774104640026,-175.67,0.00014972,2]
[408674171,1774104640036,-9552.16786547,0.00014986,2]
[408674172,1774104640045,-151.0,0.00014986,2]
[408674173,1774104640055,-6679.69,0.00015027,2]
[408674174,1774104640064,-7914.74892028,0.00015041,2]
[408674175,1774104640074,-151.0,0.00015041,2]